bitfinex-derivatives/quotes_SOLF0:USTF0_20250325
["timestamp","ask_amount","ask_price","bid_price","bid_amount"]
[1742869589726,7.1504,139.84,139.81,26.32712109]
[1742869590234,7.1507,139.83,139.81,26.32712109]
[1742869590823,7.1503,139.84,139.81,26.32712109]
[1742869591439,0.0480616,139.85,139.81,26.32712109]
[1742869592738,7.1504,139.84,139.81,26.32712109]
[1742869593438,7.1507,139.83,139.81,26.32712109]
[1742869594539,7.1511,139.82,139.81,26.32712109]
[1742869595845,0.0480616,139.85,139.81,26.32712109]
[1742869596537,0.0480616,139.85,139.81,0.04712109]
[1742869596745,12.43289691,139.85,139.75,26.28]
[1742869596936,38.66483531,139.85,139.75,26.28]
[1742869597130,7.1524,139.8,139.75,33.4345]
[1742869597741,38.66483531,139.85,139.75,33.4345]
[1742869597742,7.1527,139.79,139.75,33.4345]
[1742869598041,7.19805263,139.79,139.76,0.05145564]
[1742869599642,7.1532,139.78,139.76,0.05145564]
[1742869599846,0.04535263,139.79,139.76,0.05145564]
[1742869600042,0.04535263,139.79,139.76,26.33145564]
[1742869600239,7.1532,139.78,139.76,26.33145564]
[1742869600742,0.04535263,139.79,139.76,26.33145564]
[1742869600942,7.19835263,139.79,139.76,26.33145564]
[1742869602343,0.04535263,139.79,139.76,33.48535564]
[1742869602544,0.04535263,139.79,139.76,26.33145564]
[1742869603745,7.151,139.83,139.76,26.33145564]
[1742869604047,7.151,139.83,139.76,26.28]
[1742869604342,7.151,139.83,139.79,7.1522]
[1742869604538,7.1503,139.84,139.8,26.28]
[1742869604844,0.04598602,139.82,139.8,26.33173194]
[1742869605045,28.1997,139.87,139.8,26.33173194]
[1742869605244,0.04857956,139.82,139.8,26.33173194]
[1742869605541,0.0520947,139.82,139.8,33.48363194]
[1742869607040,0.0520947,139.82,139.8,26.33173194]
[1742869607442,0.0520947,139.82,139.81,7.1517]
[1742869609144,7.1484,139.88,139.85,7.1493]
[1742869610348,7.19984134,139.88,139.85,7.20380232]
[1742869610547,0.05144134,139.88,139.86,7.149]
[1742869611549,0.05144134,139.88,139.87,7.1486]
[1742869613545,0.05144134,139.88,139.87,33.4086]
[1742869613746,2.0725,139.94,139.87,26.26]
[1742869614047,9.2176,139.94,139.87,26.26]
[1742869614246,9.2176,139.94,139.9,7.1469]
[1742869614747,2.0725,139.94,139.87,26.26]
[1742869614950,0.05018118,139.93,139.91,0.05470995]
[1742869616441,7.19598118,139.93,139.91,0.05470995]
[1742869618151,7.146,139.92,139.91,0.05470995]
[1742869618351,0.05018118,139.93,139.91,0.05470995]
[1742869618851,7.19608118,139.93,139.91,0.05470995]
[1742869619249,0.05018118,139.93,139.91,0.05470995]
[1742869619652,7.19588118,139.93,139.91,0.05470995]
[1742869620651,7.146,139.92,139.91,0.05470995]
[1742869622151,7.1469,139.91,139.87,26.26]
[1742869623153,7.1472,139.9,139.87,26.26]
[1742869623352,7.1472,139.9,139.88,0.0511526]
[1742869623555,7.19585193,139.9,139.88,0.0511526]
[1742869626361,0.04865193,139.9,139.88,0.0511526]
[1742869626862,7.19585193,139.9,139.88,0.0511526]
[1742869628061,0.04865193,139.9,139.88,0.0511526]
[1742869629661,0.04865193,139.9,139.88,7.1991526]
[1742869630261,0.04865193,139.9,139.88,0.0511526]
[1742869630862,7.19575193,139.9,139.88,0.0511526]
[1742869631163,0.04865193,139.9,139.88,0.0511526]
[1742869636969,7.19585193,139.9,139.88,0.0511526]
[1742869637168,0.04865193,139.9,139.88,0.0511526]
[1742869638870,0.04865193,139.9,139.88,7.1991526]
[1742869639270,0.04865193,139.9,139.88,0.0511526]
[1742869639968,0.04865193,139.9,139.88,7.1989526]
[1742869640165,0.04865193,139.9,139.88,0.0511526]
[1742869640669,7.19595193,139.9,139.88,0.0511526]
[1742869642271,0.04865193,139.9,139.88,0.0511526]
[1742869643472,7.19615193,139.9,139.88,0.0511526]
[1742869643668,0.04865193,139.9,139.88,0.0511526]
[1742869644070,7.1476,139.89,139.88,0.0511526]
[1742869645475,7.1493,139.86,139.83,26.24]
[1742869646178,7.1493,139.86,139.83,33.3906]
[1742869646572,7.19536868,139.86,139.83,33.43812217]
[1742869646974,7.19536868,139.86,139.83,26.28752217]
[1742869648880,0.04606868,139.86,139.83,0.04752217]
[1742869649487,7.1501,139.84,139.83,0.04752217]
[1742869650280,7.1518,139.81,139.78,9.93787778]
[1742869650483,7.1518,139.81,139.78,36.17787778]
[1742869650681,26.24,139.85,139.78,36.17787778]
[1742869650983,7.1514,139.82,139.78,43.33097778]
[1742869651479,0.05112047,139.81,139.79,0.05466989]
[1742869652085,0.05112047,139.81,139.79,7.20726989]
[1742869652287,0.05112047,139.81,139.79,0.05466989]
[1742869654191,0.05112047,139.81,139.72,39.75151112]
[1742869654487,16.29933531,139.81,139.72,66.01151112]
[1742869654681,16.29933531,139.81,139.73,7.1557]
[1742869655493,0.05151336,139.78,139.76,0.04881002]
[1742869655989,7.20501336,139.78,139.76,0.04881002]
[1742869657391,0.05151336,139.78,139.76,0.04881002]
[1742869661189,0.05151336,139.78,139.77,7.1537]
[1742869671700,0.05151336,139.78,139.76,7.20291002]
[1742869671993,7.20481336,139.78,139.76,0.04881002]
[1742869672191,0.05151336,139.78,139.76,0.04881002]
[1742869676202,0.05151336,139.78,139.76,7.20301002]
[1742869676702,0.05151336,139.78,139.76,0.04881002]
[1742869676902,0.05151336,139.78,139.77,7.1537]
[1742869678805,19.59634867,139.78,139.66,26.26]
[1742869679001,32.2967,139.77,139.66,30.1091]
[1742869679306,7.1553,139.74,139.69,7.1575]
[1742869679505,7.1553,139.74,139.66,30.1091]
[1742869679800,7.1558,139.73,139.68,7.158]
[1742869680006,0.04913747,139.71,139.69,0.04955284]
[1742869680205,26.26,139.74,139.69,0.04955284]
[1742869680405,0.05052945,139.71,139.69,0.04955284]
[1742869685007,0.05052945,139.71,139.69,7.20725284]
[1742869685207,0.05052945,139.71,139.69,0.04955284]
[1742869686112,0.05052945,139.71,139.7,7.1573]
[1742869689007,0.05052945,139.71,139.69,7.20715284]
[1742869689313,0.05052945,139.71,139.69,0.04955284]
[1742869690913,0.05052945,139.71,139.69,7.20725284]
[1742869691315,0.05052945,139.71,139.69,0.04955284]
[1742869699224,0.05052945,139.71,139.69,7.20735284]
[1742869700526,0.05052945,139.71,139.69,0.04955284]
[1742869701622,0.05052945,139.71,139.69,7.20735284]
[1742869702323,0.05052945,139.71,139.7,7.1573]
[1742869705125,0.05052945,139.71,139.69,0.04955284]
[1742869705825,0.05052945,139.71,139.69,7.20695284]
[1742869708323,0.05052945,139.71,139.69,0.04955284]
[1742869708520,0.05052945,139.71,139.7,7.1573]
[1742869709228,0.05052945,139.71,139.69,0.04955284]
[1742869710028,0.05052945,139.71,139.69,7.20705284]
[1742869710628,0.05052945,139.71,139.69,0.04955284]
[1742869711423,0.05052945,139.71,139.7,7.1573]
[1742869716433,0.05052945,139.71,139.69,7.20705284]
[1742869716932,0.05052945,139.71,139.69,0.04955284]
[1742869717120,0.05052945,139.71,139.7,7.1573]
[1742869717326,0.05052945,139.71,139.69,0.04955284]
[1742869718333,0.05052945,139.71,139.69,7.20705284]
[1742869718632,0.05052945,139.71,139.7,26.26]
[1742869718928,0.00171943,139.71,139.7,26.26]
[1742869719121,9.1397,139.77,139.74,7.1551]
[1742869719327,1.9857,139.77,139.74,7.1551]
[1742869719624,1.9857,139.77,139.75,7.1547]
[1742869719830,26.26,139.8,139.73,26.26]
[1742869720034,28.2273,139.82,139.73,26.26]
[1742869720229,0.05453306,139.78,139.76,7.1539]
[1742869720834,0.05453306,139.78,139.77,7.1537]
[1742869729247,0.05453306,139.78,139.76,33.414]
[1742869729447,0.05453306,139.78,139.76,26.26]
[1742869730046,0.05453306,139.78,139.76,33.4139]
[1742869730248,0.05453306,139.78,139.76,26.26]
[1742869731140,0.05453306,139.78,139.77,7.1537]
[1742869740164,0.05453306,139.78,139.75,0.05435839]
[1742869740551,7.20793306,139.78,139.75,0.05435839]
[1742869741260,0.05453306,139.78,139.75,0.05435839]
[1742869741861,0.05453306,139.78,139.75,7.20875839]
[1742869743661,0.05453306,139.78,139.75,0.05435839]
[1742869744160,7.1556,139.74,139.7,7.157]
[1742869744460,38.62483531,139.76,139.69,26.24]
[1742869745060,7.1559,139.73,139.69,33.3975]
[1742869745255,7.1559,139.73,139.71,0.05267621]
[1742869745766,7.1563,139.72,139.71,0.05267621]
[1742869745956,0.05210639,139.74,139.71,0.05267621]
[1742869746464,0.05210639,139.74,139.71,7.20917621]
[1742869746764,0.05210639,139.74,139.71,0.05267621]
[1742869747765,0.05210639,139.74,139.73,7.1558]
[1742869765780,0.05210639,139.74,139.71,0.05267621]
[1742869766581,7.1558,139.73,139.71,0.05267621]
[1742869767278,0.05210639,139.74,139.71,0.05267621]
[1742869767279,7.20760639,139.74,139.71,0.05267621]
[1742869767473,0.05210639,139.74,139.71,0.05267621]
[1742869768475,0.05210639,139.74,139.71,7.20937621]
[1742869769281,0.05210639,139.74,139.71,0.05267621]
[1742869769781,0.05210639,139.74,139.72,7.1558]
[1742869771477,26.22,139.79,139.71,26.27267621]
[1742869771678,44.60653531,139.82,139.71,26.22]
[1742869771889,26.22,139.81,139.71,26.22]
[1742869772685,0.05233762,139.77,139.75,0.05227388]
[1742869774188,0.05233762,139.77,139.75,7.20697388]
[1742869775985,0.05233762,139.77,139.75,0.05227388]
[1742869779290,7.20603762,139.77,139.75,0.05227388]
[1742869779491,0.05233762,139.77,139.75,0.05227388]
[1742869780490,0.05233762,139.77,139.75,7.20697388]
[1742869780890,0.05233762,139.77,139.75,0.05227388]
[1742869781899,0.05233762,139.77,139.75,7.20697388]
[1742869782389,0.05233762,139.77,139.75,0.05227388]
[1742869785494,0.05233762,139.77,139.76,7.1542]
[1742869786997,0.05233762,139.77,139.75,7.20677388]
[1742869787298,0.05233762,139.77,139.75,0.05227388]
[1742869788603,0.05233762,139.77,139.76,7.1542]
[1742869794005,1.9469,139.82,139.8,7.1519]
[1742869794910,117.37232946,139.89,139.81,26.22]
[1742869795103,0.05107172,139.82,139.81,26.22]
[1742869795299,7.1488,139.87,139.83,7.1502]
[1742869795706,0.04558033,139.86,139.83,7.1502]
[1742869795908,0.04558033,139.86,139.84,0.05131679]
[1742869796913,0.04558033,139.86,139.84,7.20141679]
[1742869797711,0.04558033,139.86,139.84,0.05131679]
[1742869799810,0.04558033,139.86,139.84,7.20141679]
[1742869800111,0.04558033,139.86,139.84,0.05131679]
[1742869802415,12.43041564,139.86,139.75,3.8563]
[1742869802616,7.1507,139.83,139.76,26.2]
[1742869802815,26.2,139.83,139.75,26.2]
[1742869803015,2.0152,139.82,139.75,26.2]
[1742869803210,7.1525,139.8,139.75,33.3543]
[1742869803411,2.0152,139.82,139.75,26.2]
[1742869803719,7.1537,139.77,139.76,0.0501462]
[1742869803916,0.05438441,139.79,139.76,0.0501462]
[1742869804210,26.25438441,139.79,139.76,0.0501462]
[1742869804417,26.25438441,139.79,139.73,39.75151112]
[1742869804619,3.9011,139.78,139.73,39.75151112]
[1742869805007,3.9011,139.78,139.73,65.95151112]
[1742869805518,3.9011,139.78,139.74,0.04671119]
[1742869806622,30.1011,139.78,139.74,0.04671119]
[1742869806823,42.48593531,139.78,139.74,0.04671119]
[1742869807220,42.48593531,139.78,139.69,7.1576]
[1742869807421,42.48593531,139.78,139.69,33.3576]
[1742869807723,42.48593531,139.78,139.69,26.2]
[1742869807922,12.38483531,139.76,139.68,26.2]
[1742869808123,26.2,139.75,139.67,9.93787778]
[1742869808322,26.2,139.75,139.71,7.1566]
[1742869808523,0.05398411,139.72,139.71,7.1566]
[1742869808725,0.05398411,139.72,139.7,0.05166138]
[1742869810529,7.21058411,139.72,139.7,0.05166138]
[1742869810923,0.05398411,139.72,139.7,0.05166138]
[1742869812223,0.05398411,139.72,139.71,7.1568]
[1742869812630,0.05398411,139.72,139.7,7.20886138]
[1742869814433,0.05398411,139.72,139.71,7.1568]
[1742869820730,0.05398411,139.72,139.7,7.20876138]
[1742869821332,0.05398411,139.72,139.7,0.05166138]
[1742869822739,7.21068411,139.72,139.7,0.05166138]
[1742869822935,0.05398411,139.72,139.7,0.05166138]
[1742869823638,7.1568,139.71,139.7,0.05166138]
[1742869824131,7.21028411,139.72,139.7,0.05166138]
[1742869824739,0.05398411,139.72,139.7,0.05166138]
[1742869826132,7.1568,139.71,139.7,0.05166138]
[1742869826739,7.1581,139.69,139.65,7.1596]
[1742869827335,7.1579,139.69,139.64,26.22]
[1742869827740,4.0553,139.72,139.66,7.1592]
[1742869828044,0.05157261,139.68,139.66,7.1592]
[1742869829241,0.05157261,139.68,139.67,7.1588]
[1742869830739,0.05157261,139.68,139.66,7.1592]
[1742869832741,0.05157261,139.68,139.67,7.1588]
[1742869834438,0.05157261,139.68,139.66,7.1589]
[1742869834632,0.05157261,139.68,139.65,0.05122742]
[1742869834838,0.05157261,139.68,139.67,7.1588]
[1742869835033,0.05157261,139.68,139.67,33.4188]
[1742869838943,0.05157261,139.68,139.67,7.1588]
[1742869843342,0.05157261,139.68,139.67,9.151]
[1742869849155,0.05157261,139.68,139.67,33.3788]
[1742869849454,0.05157261,139.68,139.67,7.1588]
[1742869861364,0.05157261,139.68,139.66,7.1591]
[1742869861668,0.05157261,139.68,139.65,0.05122742]
[1742869861971,2.11637261,139.68,139.65,7.21072742]
[1742869862378,2.11637261,139.68,139.66,7.1589]
[1742869862576,2.11637261,139.68,139.65,0.05122742]
[1742869863078,2.11637261,139.68,139.67,7.1588]
[1742869863276,2.11637261,139.68,139.65,0.05122742]
[1742869863677,9.27477261,139.68,139.65,7.21082742]
[1742869865777,2.11637261,139.68,139.65,7.21082742]
[1742869866481,9.27497261,139.68,139.65,7.21082742]
[1742869866881,2.11637261,139.68,139.65,0.05122742]
[1742869867076,7.1593,139.66,139.65,0.05122742]
[1742869867477,2.11637261,139.68,139.65,0.05122742]
[1742869867678,7.1591,139.67,139.65,0.05122742]
[1742869867878,2.11637261,139.68,139.65,0.05122742]
[1742869869171,0.05157261,139.68,139.65,0.05122742]
[1742869869379,0.05157261,139.68,139.67,7.1588]
[1742869874184,0.05157261,139.68,139.66,26.22]
[1742869874373,0.05157261,139.68,139.65,0.05122742]
[1742869875183,0.05157261,139.68,139.65,7.21072742]
[1742869875385,1.98057261,139.68,139.65,0.05122742]
[1742869875888,1.98057261,139.68,139.67,7.1588]
[1742869877786,1.98057261,139.68,139.65,0.05122742]
[1742869879786,0.05157261,139.68,139.66,26.22]
[1742869879986,0.05157261,139.68,139.67,7.1588]
[1742869884591,0.05157261,139.68,139.66,33.3792]
[1742869885493,0.05157261,139.68,139.67,7.1588]
[1742869892102,0.05157261,139.68,139.66,33.3791]
[1742869892292,0.05157261,139.68,139.66,26.22]
[1742869893494,0.05157261,139.68,139.66,33.3791]
[1742869894199,0.05157261,139.68,139.66,26.22]
[1742869895300,0.05157261,139.68,139.67,7.1588]
[1742869897101,0.05157261,139.68,139.66,33.3791]
[1742869897500,0.05157261,139.68,139.65,0.05122742]
[1742869897704,7.1593,139.67,139.65,0.05122742]
[1742869898001,1.98007261,139.68,139.65,0.05122742]
[1742869898593,7.1591,139.67,139.65,0.05122742]
[1742869899302,1.98007261,139.68,139.61,9.93787778]
[1742869899596,3.8548,139.67,139.61,9.93787778]
[1742869899803,7.1603,139.65,139.61,9.93787778]
[1742869900395,3.8548,139.67,139.61,9.93787778]
[1742869900598,0.05171424,139.64,139.61,9.93787778]
[1742869901302,7.21241424,139.64,139.61,9.93787778]
[1742869901604,0.05171424,139.64,139.61,9.93787778]
[1742869902806,0.05171424,139.64,139.62,7.1611]
[1742869903899,0.05171424,139.64,139.63,7.1609]
[1742869908210,0.05171424,139.64,139.61,26.22]
[1742869908405,0.05171424,139.64,139.57,1.9705]
[1742869908605,0.05171424,139.64,139.58,26.22]
[1742869908806,0.05171424,139.64,139.61,7.1616]
[1742869910609,0.05171424,139.64,139.58,26.22]
[1742869911010,0.05171424,139.64,139.63,7.1609]
[1742869913511,0.05171424,139.64,139.62,7.1611]
[1742869913913,0.05171424,139.64,139.61,26.22]
[1742869914215,0.05171424,139.64,139.6,26.22]
[1742869914411,0.05171424,139.64,139.57,1.9705]
[1742869914714,7.162,139.61,139.57,7.1638]
[1742869915317,0.04843162,139.6,139.57,7.1638]
[1742869915807,0.04843162,139.6,139.58,7.1634]
[1742869916215,0.04843162,139.6,139.56,65.97151112]
[1742869916417,0.04843162,139.6,139.57,7.1637]
[1742869916715,0.04843162,139.6,139.56,39.75151112]
[1742869916916,0.04843162,139.6,139.59,7.1629]
[1742869917117,0.04843162,139.6,139.57,26.22]
[1742869918015,0.04843162,139.6,139.58,7.1631]
[1742869918316,0.04843162,139.6,139.57,26.22]
[1742869918719,0.04843162,139.6,139.57,33.3837]
[1742869920713,0.04843162,139.6,139.57,7.1637]
[1742869921110,7.21113162,139.6,139.56,7.1644]
[1742869921314,0.04843162,139.6,139.52,1.9445]
[1742869921516,0.04843162,139.6,139.53,26.22]
[1742869921815,7.1632,139.59,139.55,7.1647]
[1742869924022,7.1632,139.59,139.56,7.1644]
[1742869924222,7.21103162,139.6,139.56,7.1644]
[1742869924725,0.04843162,139.6,139.57,7.164]
[1742869926126,7.21093162,139.6,139.56,7.1643]
[1742869928320,0.04843162,139.6,139.54,33.3853]
[1742869928926,0.04843162,139.6,139.54,7.1653]
[1742869929228,7.1638,139.58,139.54,7.1653]
[1742869929416,0.04843162,139.6,139.52,28.1645]
[1742869929719,0.04854675,139.57,139.52,28.1645]
[1742869930121,0.04854675,139.57,139.54,7.1653]
[1742869934030,0.04854675,139.57,139.55,7.1648]
[1742869934231,0.04854675,139.57,139.52,28.1645]
[1742869934926,0.04854675,139.57,139.56,7.1645]
[1742869939630,0.04854675,139.57,139.55,33.3847]
[1742869940131,7.21284675,139.57,139.55,26.22]
[1742869941235,0.04854675,139.57,139.55,26.22]
[1742869942143,0.04854675,139.57,139.55,33.3849]
[1742869943241,0.04854675,139.57,139.56,7.1645]
[1742869953045,0.04854675,139.57,139.55,7.1648]
[1742869953246,0.04854675,139.57,139.52,41.69601112]
[1742869953447,0.04854675,139.57,139.53,26.22]
[1742869953739,7.21284675,139.57,139.54,7.1652]
[1742869955150,0.04854675,139.57,139.54,7.1652]
[1742869955651,0.04854675,139.57,139.53,26.22]
[1742869956150,0.04854675,139.57,139.56,7.1645]
[1742869961849,0.04854675,139.57,139.55,7.1648]
[1742869962352,0.04854675,139.57,139.53,26.22]
[1742869962647,0.04854675,139.57,139.49,36.15787778]
[1742869963052,0.04854675,139.57,139.49,9.93787778]
[1742869963254,0.04854675,139.57,139.5,26.22]
[1742869963654,0.04854675,139.57,139.55,7.1648]
[1742869968758,7.21274675,139.57,139.53,33.3858]
[1742869969155,7.21274675,139.57,139.53,7.1658]
[1742869976860,7.1645,139.56,139.53,7.1658]
[1742869977060,7.1645,139.56,139.52,7.1664]
[1742869977660,7.21274675,139.57,139.53,7.1659]
[1742869977855,7.21274675,139.57,139.5,26.22]
[1742869978261,0.04854675,139.57,139.5,26.22]
[1742869979064,7.21254675,139.57,139.5,26.22]
[1742869979657,7.21254675,139.57,139.53,7.1657]
[1742869980063,7.1645,139.56,139.53,7.1657]
[1742869980564,0.04854675,139.57,139.53,7.1657]
[1742869980763,7.21294675,139.57,139.53,7.1657]
[1742869980961,0.04854675,139.57,139.53,7.1657]
[1742869981457,7.1645,139.56,139.53,7.1657]
[1742869981657,0.04854675,139.57,139.53,7.1657]
[1742869982064,7.21274675,139.57,139.53,7.1657]
[1742869983065,7.21274675,139.57,139.54,7.1655]
[1742869983258,7.21274675,139.57,139.5,26.22]
[1742869983458,7.21274675,139.57,139.53,7.1656]
[1742869986166,0.04854675,139.57,139.54,7.1652]
[1742869986666,0.04854675,139.57,139.53,26.22]
[1742869986866,26.22,139.59,139.56,7.1645]
[1742869987466,26.267561,139.59,139.56,7.1645]
[1742869987866,33.430761,139.59,139.55,7.1647]
[1742869988068,33.430761,139.59,139.53,26.22]
[1742869988264,26.267561,139.59,139.53,26.22]
[1742869989264,0.047561,139.59,139.53,26.22]
[1742869989862,0.047561,139.59,139.55,7.1646]
[1742869990057,0.047561,139.59,139.53,26.22]
[1742869990263,7.210561,139.59,139.55,7.1645]
[1742869990462,0.047561,139.59,139.53,26.22]
[1742869991173,0.047561,139.59,139.54,3.8642]
[1742869991461,0.047561,139.59,139.58,7.1634]
[1742870007174,12.38483531,139.73,139.58,7.16]
[1742870007366,28.1307,139.72,139.59,44.55813531]
[1742870007571,7.1584,139.68,139.65,7.1596]
[1742870007877,40.51553531,139.72,139.64,26.2]
[1742870008078,7.1577,139.7,139.66,7.1592]
[1742870008379,0.0518096,139.69,139.67,0.05135918]
[1742870008772,0.0518096,139.69,139.67,7.20995918]
[1742870009276,0.0518096,139.69,139.67,0.05135918]
[1742870010173,0.0518096,139.69,139.67,7.21015918]
[1742870011875,0.0518096,139.69,139.67,0.05135918]
[1742870013181,0.0518096,139.69,139.68,7.1583]
[1742870015576,0.0518096,139.69,139.67,26.25135918]
[1742870015577,0.0518096,139.69,139.67,33.41005918]
[1742870015878,0.0518096,139.69,139.67,26.25135918]
[1742870017274,0.0518096,139.69,139.67,0.05135918]
[1742870017778,0.0518096,139.69,139.59,18.35813531]
[1742870017779,7.1583,139.68,139.59,5.9733]
[1742870017977,38.58483531,139.71,139.62,26.2]
[1742870018173,1.8954,139.7,139.62,26.2]
[1742870018380,7.1589,139.67,139.62,33.3612]
[1742870018583,1.8954,139.7,139.62,26.2]
[1742870018971,1.8954,139.7,139.59,5.9733]
[1742870018972,0.05383725,139.67,139.63,26.2]
[1742870019782,0.05383725,139.67,139.65,7.1595]
[1742870020783,0.05383725,139.67,139.66,7.1593]
[1742870020986,0.00022607,139.67,139.66,33.3593]
[1742870023687,0.00022607,139.67,139.66,26.2]
[1742870025787,0.00022607,139.67,139.66,33.3593]
[1742870035588,0.00022607,139.67,139.66,26.2]
[1742870036192,0.00022607,139.67,139.66,33.3593]
[1742870050002,4.0582,139.74,139.72,7.156]
[1742870051304,4.10898192,139.74,139.73,7.1558]
[1742870052209,4.10898192,139.74,139.72,7.20692993]
[1742870052512,4.10898192,139.74,139.72,0.05092993]
[1742870052710,4.10898192,139.74,139.73,7.1558]
[1742870054903,0.05078192,139.74,139.73,33.3358]
[1742870056613,5.8778,139.82,139.73,38.56483531]
[1742870057120,13.0292,139.82,139.73,38.56483531]
[1742870057811,0.05080249,139.79,139.76,0.04971939]
[1742870058011,0.05080249,139.79,139.77,26.16]
[1742870058212,0.05080249,139.79,139.78,7.1532]
[1742870058416,0.05080249,139.79,139.77,26.16]
[1742870058915,0.05080249,139.79,139.77,33.3137]
[1742870060016,0.05080249,139.79,139.77,26.16]
[1742870063514,0.05080249,139.79,139.77,33.3135]
[1742870063820,0.05080249,139.79,139.77,26.16]
[1742870064223,0.05080249,139.79,139.77,33.3136]
[1742870064618,0.05080249,139.79,139.78,7.1532]
[1742870069720,1.9832,139.88,139.84,7.1501]
[1742870069919,1.9832,139.88,139.85,26.14]
[1742870070318,9.1314,139.88,139.85,26.14]
[1742870070916,9.18522308,139.88,139.85,26.18839889]
[1742870071822,9.18522308,139.88,139.85,33.33799889]
[1742870072022,9.18522308,139.88,139.85,26.18839889]
[1742870072413,9.18522308,139.88,139.85,33.33789889]
[1742870072616,0.05382308,139.88,139.85,26.18839889]
[1742870073114,0.05382308,139.88,139.87,7.1486]
[1742870078525,1.9874,139.93,139.91,7.1463]
[1742870078825,1.9874,139.93,139.92,26.14]
[1742870079024,1.9874,139.93,139.92,33.286]
[1742870079720,1.9874,139.93,139.92,26.14]
[1742870080625,9.1329,139.93,139.92,26.14]
[1742870081328,1.9874,139.93,139.92,26.14]
[1742870084425,1.9874,139.93,139.92,33.286]
[1742870085131,1.9874,139.93,139.92,26.14]
[1742870086530,0.05114685,139.94,139.92,33.286]
[1742870086925,0.05114685,139.94,139.92,26.14]
[1742870087633,0.05114685,139.94,139.92,33.286]
[1742870088526,0.05114685,139.94,139.92,26.14]
[1742870089135,7.1455,139.93,139.92,26.14]
[1742870094131,7.19644685,139.94,139.92,26.14]
[1742870095135,0.05114685,139.94,139.92,26.14]
[1742870095434,0.05114685,139.94,139.93,7.1455]
[1742870096638,0.05114685,139.94,139.92,33.2859]
[1742870097739,0.05114685,139.94,139.92,26.14]
[1742870098131,7.19644685,139.94,139.92,26.14]
[1742870099633,7.1455,139.93,139.92,26.14]
[1742870100038,0.05114685,139.94,139.92,26.14]
[1742870100439,0.05114685,139.94,139.91,0.05492156]
[1742870100641,7.1455,139.93,139.91,0.05492156]
[1742870100940,0.05114685,139.94,139.91,7.20142156]
[1742870101743,0.05114685,139.94,139.92,7.1459]
[1742870103243,7.19624685,139.94,139.91,7.20122156]
[1742870104246,0.05114685,139.94,139.92,7.1459]
[1742870104641,0.05114685,139.94,139.93,26.12]
[1742870105942,7.19614685,139.94,139.93,26.12]
[1742870106745,0.05114685,139.94,139.93,26.12]
[1742870108438,0.05114685,139.94,139.93,33.2655]
[1742870110948,0.05114685,139.94,139.93,26.12]
[1742870111847,0.05114685,139.94,139.91,0.05492156]
[1742870112049,0.05114685,139.94,139.92,26.1]
[1742870112352,7.19624685,139.94,139.92,26.1]
[1742870112848,0.05114685,139.94,139.92,26.1]
[1742870113555,7.19614685,139.94,139.92,26.1]
[1742870114455,7.1455,139.93,139.92,26.1]
[1742870115253,7.146,139.92,139.91,0.05492156]
[1742870116953,7.1483,139.88,139.86,39.71437519]
[1742870117146,7.1483,139.88,139.87,26.1]
[1742870117550,7.1483,139.88,139.86,39.71437519]
[1742870117745,7.1486,139.87,139.86,39.71437519]
[1742870118152,7.202643,139.88,139.85,26.15278493]
[1742870118855,0.054343,139.88,139.85,33.30228493]
[1742870119154,0.054343,139.88,139.85,26.15278493]
[1742870119343,7.1461,139.92,139.89,7.1475]
[1742870119549,1.9457,139.95,139.9,26.1]
[1742870119854,7.146,139.93,139.9,26.1]
[1742870120353,7.146,139.93,139.9,33.247]
[1742870120650,0.04794428,139.93,139.9,26.14825703]
[1742870120849,0.04794428,139.93,139.92,7.146]
[1742870121248,2.0223,139.99,139.9,26.14825703]
[1742870121448,2.0223,139.99,139.94,7.1446]
[1742870121645,7.1433,139.98,139.95,26.1]
[1742870121851,2.0223,139.99,139.95,26.1]
[1742870122353,7.1438,139.97,139.95,26.1]
[1742870122552,7.1438,139.97,139.96,0.04942386]
[1742870122751,0.04646339,139.98,139.96,0.04942386]
[1742870123852,0.04646339,139.98,139.96,7.19342386]
[1742870124153,0.04646339,139.98,139.96,0.04942386]
[1742870124350,0.04646339,139.98,139.97,7.1435]
[1742870124554,0.04646339,139.98,139.96,0.04942386]
[1742870124955,7.18976339,139.98,139.96,0.04942386]